[Event "Titled Tuesday Blitz February 15 Early 2022"]
[White "Novikova, Galina"]
[Black "Chincholimath, Halsagar"]
[WhiteFideId "4157095"]
[BlackFideId "5022487"]
[WhiteElo "1863"]
[BlackElo "1737"]
[Result "0-1"]
[Round "11"]
[TimeControl "180+1"]
[Date "2022.02.15"]
[WhiteClock "0:00:04"]
[BlackClock "0:00:30"]

1. e4 {[%clk 0:03:00]}  c6 {[%clk 0:02:59]} 2. d4 {[%clk 0:03:00]}  d5 {[%clk 0:02:59]} 3. exd5 {[%clk 0:03:01]}  cxd5 {[%clk 0:03:00]} 4. c4 {[%clk 0:03:02]}  Nf6 {[%clk 0:02:58]} 5. Nc3 {[%clk 0:03:02]}  Nc6 {[%clk 0:02:58]} 6. Bg5 {[%clk 0:03:02]}  dxc4 {[%clk 0:02:57]} 7. d5 {[%clk 0:03:02]}  Ne5 {[%clk 0:02:36]} 8. Qd4 {[%clk 0:03:01]}  Ned7 {[%clk 0:02:16]} 9. Bxc4 {[%clk 0:02:57]}  g6 {[%clk 0:02:16]} 10. d6 {[%clk 0:02:49]}  Bg7 {[%clk 0:02:14]} 11. Qe3 {[%clk 0:02:17]}  e6 {[%clk 0:02:07]} 12. Nf3 {[%clk 0:02:15]}  Qb6 {[%clk 0:01:55]} 13. O-O-O {[%clk 0:02:08]}  O-O {[%clk 0:01:42]} 14. h4 {[%clk 0:01:45]}  Qb4 {[%clk 0:01:41]} 15. Bb3 {[%clk 0:01:38]}  a5 {[%clk 0:01:40]} 16. Rd4 {[%clk 0:01:17]}  Qc5 {[%clk 0:01:32]} 17. Rd2 {[%clk 0:01:11]}  a4 {[%clk 0:01:26]} 18. Qxc5 {[%clk 0:01:05]}  Nxc5 {[%clk 0:01:26]} 19. Bc2 {[%clk 0:01:06]}  a3 {[%clk 0:01:20]} 20. b3 {[%clk 0:01:05]}  Bd7 {[%clk 0:01:12]} 21. Be3 {[%clk 0:00:49]}  Rac8 {[%clk 0:01:09]} 22. Kb1 {[%clk 0:00:49]}  Na6 {[%clk 0:01:07]} 23. Ne4 {[%clk 0:00:42]}  Ng4 {[%clk 0:01:02]} 24. Bg5 {[%clk 0:00:27]}  Nb4 {[%clk 0:00:57]} 25. Be7 {[%clk 0:00:23]}  Rfe8 {[%clk 0:00:52]} 26. h5 {[%clk 0:00:22]}  f5 {[%clk 0:00:46]} 27. hxg6 {[%clk 0:00:20]}  hxg6 {[%clk 0:00:46]} 28. Neg5 {[%clk 0:00:15]}  e5 {[%clk 0:00:40]} 29. Nh2 {[%clk 0:00:08]}  Nf6 {[%clk 0:00:37]} 30. f3 {[%clk 0:00:07]}  Nfd5 {[%clk 0:00:35]} 31. g4 {[%clk 0:00:05]}  Nc3+ {[%clk 0:00:33]} 32. Kc1 {[%clk 0:00:04]}  Nbxa2# {[%clk 0:00:30]} 0-1


[Site "https://www.chess.com"]

[Event "Titled Tuesday Blitz February 15 Early 2022"]
[White "Orlov, Georgi"]
[Black "Guliyev, Namig"]
[WhiteFideId "2011271"]
[BlackFideId "13400363"]
[WhiteElo "2534"]
[BlackElo "2487"]
[Result "0-1"]
[Round "11"]
[TimeControl "180+1"]
[Date "2022.02.15"]
[WhiteClock "0:00:02"]
[BlackClock "0:01:12"]

1. d4 {[%clk 0:02:38]}  d5 {[%clk 0:02:59]} 2. Nf3 {[%clk 0:02:38]}  Nf6 {[%clk 0:02:59]} 3. c4 {[%clk 0:02:38]}  e6 {[%clk 0:02:59]} 4. g3 {[%clk 0:02:38]}  dxc4 {[%clk 0:02:51]} 5. Bg2 {[%clk 0:02:36]}  b5 {[%clk 0:02:52]} 6. Ne5 {[%clk 0:02:33]}  Nd5 {[%clk 0:02:51]} 7. a4 {[%clk 0:02:31]}  c6 {[%clk 0:02:48]} 8. e4 {[%clk 0:02:26]}  Nb4 {[%clk 0:02:47]} 9. O-O {[%clk 0:02:25]}  Nd7 {[%clk 0:02:45]} 10. Nf3 {[%clk 0:02:15]}  Bb7 {[%clk 0:02:43]} 11. Nc3 {[%clk 0:02:15]}  a6 {[%clk 0:02:42]} 12. b3 {[%clk 0:02:15]}  cxb3 {[%clk 0:02:42]} 13. Qxb3 {[%clk 0:02:14]}  Be7 {[%clk 0:02:42]} 14. Bf4 {[%clk 0:02:12]}  O-O {[%clk 0:02:39]} 15. Rad1 {[%clk 0:02:11]}  Qa5 {[%clk 0:02:34]} 16. h4 {[%clk 0:02:07]}  c5 {[%clk 0:02:29]} 17. d5 {[%clk 0:02:06]}  c4 {[%clk 0:02:28]} 18. Qa3 {[%clk 0:01:56]}  exd5 {[%clk 0:02:26]} 19. Qa1 {[%clk 0:01:38]}  Nc5 {[%clk 0:02:03]} 20. exd5 {[%clk 0:01:33]}  Nbd3 {[%clk 0:01:57]} 21. Ne2 {[%clk 0:01:13]}  Qxa4 {[%clk 0:01:52]} 22. d6 {[%clk 0:01:05]}  Bf6 {[%clk 0:01:49]} 23. Qb1 {[%clk 0:01:04]}  Rad8 {[%clk 0:01:40]} 24. Ned4 {[%clk 0:01:00]}  Nxf4 {[%clk 0:01:39]} 25. gxf4 {[%clk 0:01:00]}  Nd3 {[%clk 0:01:39]} 26. Nf5 {[%clk 0:00:57]}  Be4 {[%clk 0:01:33]} 27. Ne7+ {[%clk 0:00:55]}  Kh8 {[%clk 0:01:33]} 28. Ng5 {[%clk 0:00:55]}  Bxg2 {[%clk 0:01:24]} 29. Kxg2 {[%clk 0:00:47]}  Rxd6 {[%clk 0:01:23]} 30. Ne4 {[%clk 0:00:42]}  Bxe7 {[%clk 0:01:20]} 31. Nxd6 {[%clk 0:00:42]}  Bxd6 {[%clk 0:01:20]} 32. Kh1 {[%clk 0:00:13]}  b4 {[%clk 0:01:17]} 33. Rxd3 {[%clk 0:00:12]}  cxd3 {[%clk 0:01:17]} 34. Qxd3 {[%clk 0:00:13]}  Qc6+ {[%clk 0:01:17]} 35. f3 {[%clk 0:00:06]}  Bxf4 {[%clk 0:01:17]} 36. Rg1 {[%clk 0:00:05]}  Qf6 {[%clk 0:01:12]} 37. Kg2 {[%clk 0:00:01]}  Qxh4 {[%clk 0:01:11]} 38. Rh1 {[%clk 0:00:02]}  Qg3+ {[%clk 0:01:11]} 39. Kf1 {[%clk 0:00:02]}  h6 {[%clk 0:01:12]} 0-1


[Site "https://www.chess.com"]

[Event "Titled Tuesday Blitz February 15 Early 2022"]
[White "Osmonbekov, Talaibek"]
[Black "Musovic, Armin"]
[WhiteFideId "2017253"]
[BlackFideId "939935"]
[WhiteElo "2135"]
[BlackElo "2250"]
[Result "0-1"]
[Round "11"]
[TimeControl "180+1"]
[Date "2022.02.15"]
[WhiteClock "0:00:01"]
[BlackClock "0:00:20"]

1. d4 {[%clk 0:03:00]}  d5 {[%clk 0:02:59]} 2. Nc3 {[%clk 0:03:01]}  c5 {[%clk 0:03:00]} 3. Bf4 {[%clk 0:02:59]}  Nc6 {[%clk 0:02:59]} 4. e3 {[%clk 0:03:00]}  a6 {[%clk 0:03:00]} 5. Nf3 {[%clk 0:02:59]}  Bg4 {[%clk 0:03:00]} 6. Be2 {[%clk 0:02:56]}  e6 {[%clk 0:02:59]} 7. O-O {[%clk 0:02:50]}  Nf6 {[%clk 0:03:00]} 8. h3 {[%clk 0:02:47]}  Bxf3 {[%clk 0:03:00]} 9. Bxf3 {[%clk 0:02:47]}  cxd4 {[%clk 0:03:01]} 10. exd4 {[%clk 0:02:47]}  Qb6 {[%clk 0:03:00]} 11. Re1 {[%clk 0:02:42]}  Be7 {[%clk 0:03:00]} 12. Ne2 {[%clk 0:02:33]}  Qxb2 {[%clk 0:02:45]} 13. Rb1 {[%clk 0:02:27]}  Qxa2 {[%clk 0:02:45]} 14. Rxb7 {[%clk 0:02:13]}  O-O {[%clk 0:02:45]} 15. Qd2 {[%clk 0:01:27]}  Rfc8 {[%clk 0:02:27]} 16. Nc1 {[%clk 0:01:17]}  Qa3 {[%clk 0:02:15]} 17. Re3 {[%clk 0:01:09]}  Qa1 {[%clk 0:01:58]} 18. c3 {[%clk 0:00:55]}  Ba3 {[%clk 0:01:03]} 19. Re1 {[%clk 0:00:52]}  Na5 {[%clk 0:00:58]} 20. Rb3 {[%clk 0:00:32]}  Bxc1 {[%clk 0:00:48]} 21. Rxc1 {[%clk 0:00:30]}  Nxb3 {[%clk 0:00:48]} 22. Rxa1 {[%clk 0:00:29]}  Nxd2 {[%clk 0:00:48]} 23. Bxd2 {[%clk 0:00:30]}  Ne4 {[%clk 0:00:49]} 24. Bxe4 {[%clk 0:00:29]}  dxe4 {[%clk 0:00:50]} 25. Ra5 {[%clk 0:00:27]}  f5 {[%clk 0:00:44]} 26. Kf1 {[%clk 0:00:27]}  Kf7 {[%clk 0:00:37]} 27. Ke2 {[%clk 0:00:27]}  Ke7 {[%clk 0:00:38]} 28. h4 {[%clk 0:00:22]}  Kd7 {[%clk 0:00:38]} 29. Ke3 {[%clk 0:00:17]}  Rcb8 {[%clk 0:00:34]} 30. d5 {[%clk 0:00:12]}  Rb5 {[%clk 0:00:32]} 31. dxe6+ {[%clk 0:00:11]}  Kxe6 {[%clk 0:00:33]} 32. Ra4 {[%clk 0:00:11]}  Rd5 {[%clk 0:00:30]} 33. c4 {[%clk 0:00:11]}  Rd3+ {[%clk 0:00:30]} 34. Ke2 {[%clk 0:00:11]}  Ke5 {[%clk 0:00:24]} 35. g3 {[%clk 0:00:10]}  Kd4 {[%clk 0:00:22]} 36. Be3+ {[%clk 0:00:10]}  Kc3 {[%clk 0:00:23]} 37. c5 {[%clk 0:00:07]}  Kb3 {[%clk 0:00:23]} 38. Ra1 {[%clk 0:00:04]}  Rc3 {[%clk 0:00:23]} 39. Rb1+ {[%clk 0:00:04]}  Ka2 {[%clk 0:00:24]} 40. Rb7 {[%clk 0:00:02]}  a5 {[%clk 0:00:19]} 41. Rxg7 {[%clk 0:00:01]}  a4 {[%clk 0:00:20]} 0-1


[Site "https://www.chess.com"]

[Event "Titled Tuesday Blitz February 15 Early 2022"]
[White "Qashashvili, Alexandre"]
[Black "Gulatz, Maurice"]
[WhiteFideId "13600842"]
[BlackFideId "24642746"]
[WhiteElo "2316"]
[BlackElo "2150"]
[Result "0-1"]
[Round "11"]
[TimeControl "180+1"]
[Date "2022.02.15"]
[WhiteClock "0:00:02"]
[BlackClock "0:00:11"]

1. e4 {[%clk 0:03:00]}  c6 {[%clk 0:02:58]} 2. d4 {[%clk 0:02:59]}  d5 {[%clk 0:02:58]} 3. Nc3 {[%clk 0:02:59]}  dxe4 {[%clk 0:02:59]} 4. Nxe4 {[%clk 0:03:00]}  Bf5 {[%clk 0:02:59]} 5. Ng3 {[%clk 0:03:00]}  Bg6 {[%clk 0:03:00]} 6. Nf3 {[%clk 0:03:01]}  Nd7 {[%clk 0:02:59]} 7. Bd3 {[%clk 0:03:01]}  Ngf6 {[%clk 0:02:55]} 8. Bxg6 {[%clk 0:02:55]}  hxg6 {[%clk 0:02:55]} 9. Bf4 {[%clk 0:02:54]}  e6 {[%clk 0:02:55]} 10. O-O {[%clk 0:02:52]}  Be7 {[%clk 0:02:54]} 11. Ne5 {[%clk 0:02:52]}  O-O {[%clk 0:02:53]} 12. Nxd7 {[%clk 0:02:52]}  Qxd7 {[%clk 0:02:53]} 13. c3 {[%clk 0:02:51]}  Rfd8 {[%clk 0:02:52]} 14. Qe2 {[%clk 0:02:51]}  c5 {[%clk 0:02:45]} 15. dxc5 {[%clk 0:02:50]}  Bxc5 {[%clk 0:02:45]} 16. Rfd1 {[%clk 0:02:49]}  Qc6 {[%clk 0:02:44]} 17. Be3 {[%clk 0:02:49]}  Be7 {[%clk 0:02:28]} 18. h3 {[%clk 0:02:43]}  a6 {[%clk 0:02:28]} 19. Rxd8+ {[%clk 0:02:42]}  Rxd8 {[%clk 0:02:27]} 20. Rd1 {[%clk 0:02:43]}  Rxd1+ {[%clk 0:02:27]} 21. Qxd1 {[%clk 0:02:44]}  Nd5 {[%clk 0:02:27]} 22. Bd4 {[%clk 0:02:38]}  Nf4 {[%clk 0:02:20]} 23. f3 {[%clk 0:02:34]}  Bc5 {[%clk 0:02:12]} 24. Bxc5 {[%clk 0:01:56]}  Qxc5+ {[%clk 0:02:11]} 25. Kh2 {[%clk 0:01:56]}  Qc7 {[%clk 0:02:02]} 26. h4 {[%clk 0:00:46]}  Nh5 {[%clk 0:01:51]} 27. Qe1 {[%clk 0:00:45]}  Qf4 {[%clk 0:01:49]} 28. Kh3 {[%clk 0:00:45]}  Nf6 {[%clk 0:01:46]} 29. Qd1 {[%clk 0:00:32]}  Qc7 {[%clk 0:01:42]} 30. Qd4 {[%clk 0:00:28]}  Nd5 {[%clk 0:01:40]} 31. Ne4 {[%clk 0:00:26]}  Qf4 {[%clk 0:01:31]} 32. Ng5 {[%clk 0:00:20]}  Qxd4 {[%clk 0:01:16]} 33. cxd4 {[%clk 0:00:21]}  Nb4 {[%clk 0:01:16]} 34. a3 {[%clk 0:00:16]}  Nc2 {[%clk 0:01:16]} 35. Ne4 {[%clk 0:00:13]}  Nxd4 {[%clk 0:01:15]} 36. Nc5 {[%clk 0:00:14]}  Kf8 {[%clk 0:01:05]} 37. Nxb7 {[%clk 0:00:13]}  Ke7 {[%clk 0:01:03]} 38. Nc5 {[%clk 0:00:13]}  a5 {[%clk 0:01:02]} 39. b4 {[%clk 0:00:13]}  axb4 {[%clk 0:01:00]} 40. axb4 {[%clk 0:00:14]}  Nb5 {[%clk 0:00:56]} 41. Nd3 {[%clk 0:00:13]}  Kd6 {[%clk 0:00:54]} 42. Kg3 {[%clk 0:00:11]}  Kd5 {[%clk 0:00:51]} 43. Kf2 {[%clk 0:00:09]}  Kd4 {[%clk 0:00:49]} 44. Ke2 {[%clk 0:00:10]}  e5 {[%clk 0:00:47]} 45. g4 {[%clk 0:00:09]}  f5 {[%clk 0:00:43]} 46. h5 {[%clk 0:00:08]}  gxh5 {[%clk 0:00:37]} 47. gxh5 {[%clk 0:00:06]}  e4 {[%clk 0:00:20]} 48. fxe4 {[%clk 0:00:07]}  fxe4 {[%clk 0:00:20]} 49. Nf4 {[%clk 0:00:06]}  Nc3+ {[%clk 0:00:21]} 50. Ke1 {[%clk 0:00:06]}  e3 {[%clk 0:00:17]} 51. Ne6+ {[%clk 0:00:05]}  Kd3 {[%clk 0:00:17]} 52. Nxg7 {[%clk 0:00:04]}  Ne4 {[%clk 0:00:14]} 53. Ne6 {[%clk 0:00:03]}  Nd2 {[%clk 0:00:14]} 54. Nf4+ {[%clk 0:00:03]}  Ke4 {[%clk 0:00:13]} 55. Ne2 {[%clk 0:00:01]}  Nf3+ {[%clk 0:00:12]} 56. Kd1 {[%clk 0:00:01]}  Ng5 {[%clk 0:00:10]} 57. h6 {[%clk 0:00:02]}  Kd5 {[%clk 0:00:10]} 58. Kc2 {[%clk 0:00:02]}  Kc4 {[%clk 0:00:11]} 0-1


[Site "https://www.chess.com"]

[Event "Titled Tuesday Blitz February 15 Early 2022"]
[White "Sahil, Tickoo"]
[Black "Steenbekkers, Franck"]
[WhiteFideId "5019710"]
[BlackFideId "1004220"]
[WhiteElo "2099"]
[BlackElo "2131"]
[Result "1-0"]
[Round "11"]
[TimeControl "180+1"]
[Date "2022.02.15"]
[WhiteClock "0:00:58"]
[BlackClock "0:00:43"]

1. d4 {[%clk 0:03:00]}  Nf6 {[%clk 0:02:58]} 2. Bf4 {[%clk 0:03:00]}  g6 {[%clk 0:02:55]} 3. e3 {[%clk 0:02:59]}  Bg7 {[%clk 0:02:40]} 4. h4 {[%clk 0:02:58]}  h5 {[%clk 0:02:38]} 5. Nf3 {[%clk 0:02:56]}  c5 {[%clk 0:02:30]} 6. c3 {[%clk 0:02:56]}  Qb6 {[%clk 0:02:27]} 7. Qb3 {[%clk 0:02:56]}  d5 {[%clk 0:02:20]} 8. Nbd2 {[%clk 0:02:46]}  Nc6 {[%clk 0:02:12]} 9. Be2 {[%clk 0:02:39]}  c4 {[%clk 0:02:01]} 10. Qc2 {[%clk 0:02:36]}  Bf5 {[%clk 0:01:58]} 11. Qc1 {[%clk 0:02:35]}  Ne4 {[%clk 0:01:57]} 12. Nxe4 {[%clk 0:02:34]}  Bxe4 {[%clk 0:01:56]} 13. O-O {[%clk 0:02:33]}  e6 {[%clk 0:01:53]} 14. Bg5 {[%clk 0:02:30]}  O-O {[%clk 0:01:40]} 15. Nd2 {[%clk 0:02:23]}  Bf5 {[%clk 0:01:34]} 16. b3 {[%clk 0:02:15]}  cxb3 {[%clk 0:01:29]} 17. axb3 {[%clk 0:02:12]}  e5 {[%clk 0:01:28]} 18. e4 {[%clk 0:01:48]}  dxe4 {[%clk 0:01:13]} 19. d5 {[%clk 0:01:45]}  Nd8 {[%clk 0:01:01]} 20. Be3 {[%clk 0:01:42]}  Rc8 {[%clk 0:00:43]} 21. Bxb6 {[%clk 0:00:58]} 1-0


[Site "https://www.chess.com"]

[Event "Titled Tuesday Blitz February 15 Early 2022"]
[White "Samadov, Read"]
[Black "Vokhidov, Shamsiddin"]
[WhiteFideId "13417444"]
[BlackFideId "14204223"]
[WhiteElo "2084"]
[BlackElo "2611"]
[Result "1/2-1/2"]
[Round "11"]
[TimeControl "180+1"]
[Date "2022.02.15"]
[WhiteClock "0:00:05"]
[BlackClock "0:00:07"]

1. d4 {[%clk 0:03:00]}  Nf6 {[%clk 0:03:00]} 2. c4 {[%clk 0:03:01]}  e6 {[%clk 0:03:00]} 3. Nf3 {[%clk 0:03:01]}  d5 {[%clk 0:02:59]} 4. g3 {[%clk 0:03:02]}  Bb4+ {[%clk 0:02:57]} 5. Bd2 {[%clk 0:03:01]}  Be7 {[%clk 0:02:56]} 6. Bg2 {[%clk 0:03:02]}  c6 {[%clk 0:02:57]} 7. O-O {[%clk 0:03:02]}  b6 {[%clk 0:02:55]} 8. Ne5 {[%clk 0:02:58]}  Nfd7 {[%clk 0:02:53]} 9. Nxd7 {[%clk 0:02:46]}  Nxd7 {[%clk 0:02:54]} 10. Nc3 {[%clk 0:02:46]}  Bb7 {[%clk 0:02:52]} 11. b3 {[%clk 0:02:44]}  O-O {[%clk 0:02:50]} 12. e4 {[%clk 0:02:45]}  c5 {[%clk 0:02:34]} 13. exd5 {[%clk 0:02:33]}  cxd4 {[%clk 0:02:32]} 14. Nb5 {[%clk 0:02:14]}  exd5 {[%clk 0:02:12]} 15. Nxd4 {[%clk 0:02:12]}  Bf6 {[%clk 0:02:06]} 16. Be3 {[%clk 0:02:04]}  Nc5 {[%clk 0:02:05]} 17. Rc1 {[%clk 0:01:54]}  Rc8 {[%clk 0:01:55]} 18. Nf5 {[%clk 0:01:29]}  dxc4 {[%clk 0:01:43]} 19. Bxc5 {[%clk 0:01:18]}  Bxg2 {[%clk 0:01:23]} 20. Bxf8 {[%clk 0:01:12]}  Bxf1 {[%clk 0:01:21]} 21. Qxf1 {[%clk 0:00:49]}  Kxf8 {[%clk 0:00:59]} 22. Rxc4 {[%clk 0:00:48]}  g6 {[%clk 0:00:55]} 23. Ne3 {[%clk 0:00:36]}  Bd4 {[%clk 0:00:49]} 24. Nc2 {[%clk 0:00:23]}  Bc5 {[%clk 0:00:42]} 25. b4 {[%clk 0:00:19]}  Bxf2+ {[%clk 0:00:36]} 26. Kxf2 {[%clk 0:00:14]}  Qf6+ {[%clk 0:00:31]} 27. Rf4 {[%clk 0:00:14]}  Rxc2+ {[%clk 0:00:31]} 28. Kg1 {[%clk 0:00:15]}  Qe7 {[%clk 0:00:23]} 29. a3 {[%clk 0:00:14]}  Qe6 {[%clk 0:00:19]} 30. Rf3 {[%clk 0:00:13]}  Kg7 {[%clk 0:00:17]} 31. Qa1+ {[%clk 0:00:13]}  f6 {[%clk 0:00:17]} 32. Qd1 {[%clk 0:00:13]}  Re2 {[%clk 0:00:16]} 33. Qd8 {[%clk 0:00:10]}  Re1+ {[%clk 0:00:14]} 34. Kg2 {[%clk 0:00:09]}  Qe2+ {[%clk 0:00:13]} 35. Rf2 {[%clk 0:00:10]}  Qe4+ {[%clk 0:00:13]} 36. Kh3 {[%clk 0:00:10]}  Qe6+ {[%clk 0:00:13]} 37. Kg2 {[%clk 0:00:10]}  Qc6+ {[%clk 0:00:13]} 38. Kh3 {[%clk 0:00:10]}  Re8 {[%clk 0:00:11]} 39. Rxf6 {[%clk 0:00:07]}  Qxf6 {[%clk 0:00:08]} 40. Qxe8 {[%clk 0:00:08]}  Qf1+ {[%clk 0:00:07]} 41. Kh4 {[%clk 0:00:06]}  Qf6+ {[%clk 0:00:07]} 42. Kh3 {[%clk 0:00:05]}  Qf5+ {[%clk 0:00:06]} 43. Kg2 {[%clk 0:00:05]}  Qc2+ {[%clk 0:00:06]} 44. Kh3 {[%clk 0:00:06]}  Qf5+ {[%clk 0:00:05]} 45. Kg2 {[%clk 0:00:06]}  Qd5+ {[%clk 0:00:05]} 46. Kg1 {[%clk 0:00:05]}  Qd1+ {[%clk 0:00:04]} 47. Kg2 {[%clk 0:00:06]}  Qd2+ {[%clk 0:00:04]} 48. Kh3 {[%clk 0:00:06]}  Qh6+ {[%clk 0:00:04]} 49. Kg2 {[%clk 0:00:07]}  Qd2+ {[%clk 0:00:04]} 50. Kh3 {[%clk 0:00:07]}  Qd6 {[%clk 0:00:04]} 51. Qa8 {[%clk 0:00:06]}  Qd7+ {[%clk 0:00:04]} 52. Kg2 {[%clk 0:00:06]}  Qd2+ {[%clk 0:00:04]} 53. Kh3 {[%clk 0:00:06]}  Qd7+ {[%clk 0:00:04]} 54. Kg2 {[%clk 0:00:07]}  Qe7 {[%clk 0:00:05]} 55. Qc6 {[%clk 0:00:06]}  Qe2+ {[%clk 0:00:05]} 56. Kh3 {[%clk 0:00:06]}  Qf1+ {[%clk 0:00:05]} 57. Kh4 {[%clk 0:00:07]}  Qf7 {[%clk 0:00:03]} 58. Qe4 {[%clk 0:00:04]}  Qf6+ {[%clk 0:00:03]} 59. Kh3 {[%clk 0:00:04]}  Qf1+ {[%clk 0:00:03]} 60. Kh4 {[%clk 0:00:05]}  Qf6+ {[%clk 0:00:03]} 61. Kh3 {[%clk 0:00:05]}  Qd6 {[%clk 0:00:04]} 62. Kg2 {[%clk 0:00:05]}  Qd2+ {[%clk 0:00:03]} 63. Kh3 {[%clk 0:00:05]}  Qd6 {[%clk 0:00:04]} 64. Kg2 {[%clk 0:00:05]}  Qd7 {[%clk 0:00:05]} 65. Qe5+ {[%clk 0:00:05]}  Kf7 {[%clk 0:00:05]} 66. Qf4+ {[%clk 0:00:05]}  Kg7 {[%clk 0:00:06]} 67. Qe5+ {[%clk 0:00:05]}  Kf7 {[%clk 0:00:06]} 68. Qf4+ {[%clk 0:00:05]}  Ke7 {[%clk 0:00:07]} 69. Qe5+ {[%clk 0:00:05]}  Kf7 {[%clk 0:00:07]} 1/2-1/2


[Site "https://www.chess.com"]

[Event "Titled Tuesday Blitz February 15 Early 2022"]
[White "Samarth, J Rao"]
[Black "Allahverdiyeva, Ayan"]
[WhiteFideId "46652370"]
[BlackFideId "13412590"]
[WhiteElo "1514"]
[BlackElo "1910"]
[Result "0-1"]
[Round "11"]
[TimeControl "180+1"]
[Date "2022.02.15"]
[WhiteClock "0:00:03"]
[BlackClock "0:00:09"]

1. c4 {[%clk 0:02:56]}  d5 {[%clk 0:02:46]} 2. cxd5 {[%clk 0:02:46]}  Qxd5 {[%clk 0:02:47]} 3. Nc3 {[%clk 0:02:46]}  Qd8 {[%clk 0:02:44]} 4. d4 {[%clk 0:02:47]}  Nf6 {[%clk 0:02:43]} 5. e4 {[%clk 0:02:47]}  e6 {[%clk 0:02:44]} 6. f4 {[%clk 0:02:47]}  Be7 {[%clk 0:02:44]} 7. Nf3 {[%clk 0:02:47]}  O-O {[%clk 0:02:44]} 8. e5 {[%clk 0:02:47]}  Nd5 {[%clk 0:02:44]} 9. Bd3 {[%clk 0:02:48]}  c5 {[%clk 0:02:41]} 10. h4 {[%clk 0:02:46]}  cxd4 {[%clk 0:02:40]} 11. Ne2 {[%clk 0:02:46]}  Ne3 {[%clk 0:02:40]} 12. Bxe3 {[%clk 0:02:44]}  dxe3 {[%clk 0:02:40]} 13. Nc3 {[%clk 0:02:38]}  Nc6 {[%clk 0:02:30]} 14. Qe2 {[%clk 0:02:18]}  Bc5 {[%clk 0:02:22]} 15. O-O-O {[%clk 0:01:54]}  Qa5 {[%clk 0:02:18]} 16. Bxh7+ {[%clk 0:01:44]}  Kh8 {[%clk 0:02:10]} 17. Ng5 {[%clk 0:01:45]}  Rd8 {[%clk 0:01:31]} 18. Nxf7+ {[%clk 0:01:33]}  Kxh7 {[%clk 0:01:27]} 19. Qh5+ {[%clk 0:01:30]}  Kg8 {[%clk 0:01:27]} 20. Nxd8 {[%clk 0:01:31]}  Nxd8 {[%clk 0:01:26]} 21. Qe8+ {[%clk 0:01:30]}  Kh7 {[%clk 0:01:24]} 22. Rxd8 {[%clk 0:01:29]}  Qxd8 {[%clk 0:01:12]} 23. Qxd8 {[%clk 0:01:28]}  b6 {[%clk 0:01:13]} 24. h5 {[%clk 0:01:27]}  Bb7 {[%clk 0:01:13]} 25. Qg5 {[%clk 0:01:25]}  e2 {[%clk 0:00:50]} 26. h6 {[%clk 0:01:23]}  g6 {[%clk 0:00:50]} 27. Nxe2 {[%clk 0:01:18]}  Be3+ {[%clk 0:00:48]} 28. Kb1 {[%clk 0:01:18]}  Be4+ {[%clk 0:00:47]} 29. Ka1 {[%clk 0:01:18]}  Bc5 {[%clk 0:00:46]} 30. Nc3 {[%clk 0:01:18]}  Bc2 {[%clk 0:00:44]} 31. Qf6 {[%clk 0:01:14]}  Rg8 {[%clk 0:00:42]} 32. Qf7+ {[%clk 0:01:14]}  Kh8 {[%clk 0:00:42]} 33. h7 {[%clk 0:01:14]}  Rf8 {[%clk 0:00:41]} 34. Qxg6 {[%clk 0:01:15]}  Bxg6 {[%clk 0:00:40]} 35. Rf1 {[%clk 0:00:58]}  Bxh7 {[%clk 0:00:39]} 36. g4 {[%clk 0:00:58]}  Be3 {[%clk 0:00:36]} 37. f5 {[%clk 0:00:56]}  exf5 {[%clk 0:00:36]} 38. gxf5 {[%clk 0:00:56]}  Rxf5 {[%clk 0:00:37]} 39. Rxf5 {[%clk 0:00:49]}  Bxf5 {[%clk 0:00:36]} 40. Nb5 {[%clk 0:00:49]}  a5 {[%clk 0:00:31]} 41. Nd6 {[%clk 0:00:49]}  Be6 {[%clk 0:00:30]} 42. Ne8 {[%clk 0:00:41]}  Bd4 {[%clk 0:00:29]} 43. Nc7 {[%clk 0:00:41]}  Bg4 {[%clk 0:00:15]} 44. e6 {[%clk 0:00:41]}  Bc5 {[%clk 0:00:15]} 45. Kb1 {[%clk 0:00:35]}  Kg8 {[%clk 0:00:15]} 46. Kc2 {[%clk 0:00:31]}  Kf8 {[%clk 0:00:15]} 47. Kc3 {[%clk 0:00:27]}  Ke7 {[%clk 0:00:16]} 48. a3 {[%clk 0:00:23]}  Kd6 {[%clk 0:00:14]} 49. e7 {[%clk 0:00:14]}  Kxe7 {[%clk 0:00:13]} 50. Nd5+ {[%clk 0:00:12]}  Kd6 {[%clk 0:00:13]} 51. Nf6 {[%clk 0:00:11]}  Bf3 {[%clk 0:00:11]} 52. Ne8+ {[%clk 0:00:10]}  Kd7 {[%clk 0:00:11]} 53. Nf6+ {[%clk 0:00:10]}  Ke7 {[%clk 0:00:10]} 54. Nh7 {[%clk 0:00:09]}  Be3 {[%clk 0:00:09]} 55. Kd3 {[%clk 0:00:07]}  Bh6 {[%clk 0:00:09]} 56. b4 {[%clk 0:00:06]}  Bh5 {[%clk 0:00:09]} 57. bxa5 {[%clk 0:00:04]}  bxa5 {[%clk 0:00:10]} 58. Kc4 {[%clk 0:00:04]}  Bg6 {[%clk 0:00:08]} 59. Kb5 {[%clk 0:00:03]}  Bxh7 {[%clk 0:00:08]} 60. Kxa5 {[%clk 0:00:04]}  Kd7 {[%clk 0:00:09]} 61. Kb6 {[%clk 0:00:04]}  Kc8 {[%clk 0:00:09]} 62. a4 {[%clk 0:00:04]}  Be3+ {[%clk 0:00:09]} 63. Kc6 {[%clk 0:00:03]}  Bg6 {[%clk 0:00:08]} 64. a5 {[%clk 0:00:03]}  Be8+ {[%clk 0:00:08]} 65. Kd5 {[%clk 0:00:02]}  Kb7 {[%clk 0:00:09]} 66. Kc4 {[%clk 0:00:02]}  Ka6 {[%clk 0:00:08]} 67. Kb4 {[%clk 0:00:02]}  Bd2+ {[%clk 0:00:08]} 68. Kc4 {[%clk 0:00:03]}  Bxa5 {[%clk 0:00:09]} 69. Kd5 {[%clk 0:00:03]}  Kb6 {[%clk 0:00:09]} 70. Ke6 {[%clk 0:00:04]}  Kc6 {[%clk 0:00:08]} 71. Ke7 {[%clk 0:00:04]}  Bh5 {[%clk 0:00:08]} 72. Kf6 {[%clk 0:00:04]}  Bc3+ {[%clk 0:00:08]} 73. Ke7 {[%clk 0:00:04]}  Bg4 {[%clk 0:00:08]} 74. Kf7 {[%clk 0:00:04]}  Kd6 {[%clk 0:00:08]} 75. Ke8 {[%clk 0:00:04]}  Ke6 {[%clk 0:00:08]} 76. Kd8 {[%clk 0:00:05]}  Be5 {[%clk 0:00:07]} 77. Ke8 {[%clk 0:00:05]}  Bf3 {[%clk 0:00:06]} 78. Kd8 {[%clk 0:00:02]}  Bb7 {[%clk 0:00:06]} 79. Ke8 {[%clk 0:00:02]}  Bc7 {[%clk 0:00:05]} 80. Kf8 {[%clk 0:00:02]}  Kf6 {[%clk 0:00:05]} 81. Ke8 {[%clk 0:00:03]}  Bc6+ {[%clk 0:00:06]} 82. Kf8 {[%clk 0:00:03]}  Bd6+ {[%clk 0:00:06]} 83. Kg8 {[%clk 0:00:03]}  Kg6 {[%clk 0:00:07]} 84. Kh8 {[%clk 0:00:02]}  Bb7 {[%clk 0:00:07]} 85. Kg8 {[%clk 0:00:03]}  Bd5+ {[%clk 0:00:08]} 86. Kh8 {[%clk 0:00:03]}  Be5# {[%clk 0:00:09]} 0-1


[Site "https://www.chess.com"]